Workbook

Sheet 1. Giełda
A1: Data | B1: Indeks WIG
A2: 2012-11-30 | B2: 47,700.76
A3: 2012-11-29 | B3: 47,911.46
A4: 2012-11-28 | B4: 47,422.73
A5: 2012-11-27 | B5: 47,596.12
A6: 2012-11-26 | B6: 47,718.80
A7: 2012-11-23 | B7: 47,693.24
A8: 2012-11-22 | B8: 47,732.90
A9: 2012-11-21 | B9: 47,363.90
A10: 2012-11-20 | B10: 47,651.54
A11: 2012-11-19 | B11: 47,516.86
A12: 2012-11-16 | B12: 47,892.91
A13: 2012-11-15 | B13: 47,637.57
A14: 2012-11-14 | B14: 47,649.66
A15: 2012-11-13 | B15: 47,510.17
A16: 2012-11-12 | B16: 47,465.15
A17: 2012-11-09 | B17: 47,554.07
A18: 2012-11-08 | B18: 47,516.57
A19: 2012-11-07 | B19: 47,348.16
A20: 2012-11-06 | B20: 46,868.43
A21: 2012-11-05 | B21: 46,481.15
A22: 2012-11-02 | B22: 46,145.34

Sheet 2. Wybory
A1: Kandydat | B1: Liczba głosów
A2: Janek Wiśniewski (1C) | B2: 45
A3: Kasia Nowak (3B) | B3: 32
A4: Dorota Kowalska (2A) | B4: 116
A5: Marek Kowalski (2A) | B5: 201

Sheet 3. Matematyczne I
A1: x | B1: y
A2: -5 | B2: =1/(POWER(A2,2)-1) -> 0.04166666667
A3: -4.9 | B3: =1/(POWER(A3,2)-1) -> 0.04345936549
A4: -4.8 | B4: =1/(POWER(A4,2)-1) -> 0.04537205082
A5: -4.7 | B5: 0.04741583689
A6: -4.6 | B6: 0.0496031746
A7: -4.5 | B7: 0.05194805195
A8: -4.4 | B8: 0.05446623094
A9: -4.3 | B9: 0.05717552887
A10: -4.2 | B10: 0.06009615385
A11: -4.1 | B11: 0.06325110689
A12: -4 | B12: 0.06666666667
A13: -3.9 | B13: 0.07037297678
A14: -3.8 | B14: 0.0744047619
A15: -3.7 | B15: 0.07880220646
A16: -3.6 | B16: 0.08361204013
A17: -3.5 | B17: 0.08888888889
A18: -3.4 | B18: 0.0946969697
A19: -3.3 | B19: 0.1011122346
A20: -3.2 | B20: 0.1082251082
A21: -3.1 | B21: 0.1161440186
A22: -3 | B22: 0.125
A23: -2.9 | B23: 0.1349527665
A24: -2.8 | B24: 0.1461988304
A25: -2.7 | B25: 0.1589825119
A26: -2.6 | B26: 0.1736111111
A27: -2.5 | B27: 0.1904761905
A28: -2.4 | B28: 0.2100840336
A29: -2.3 | B29: 0.2331002331
A30: -2.2 | B30: 0.2604166667
A31: -2.1 | B31: 0.293255132
A32: -2 | B32: 0.3333333333
A33: -1.9 | B33: 0.3831417625
A34: -1.8 | B34: 0.4464285714
A35: -1.7 | B35: 0.5291005291
A36: -1.6 | B36: 0.641025641
A37: -1.5 | B37: 0.8
A38: -1.4 | B38: 1.041666667
A39: -1.3 | B39: 1.449275362
A40: -1.2 | B40: 2.272727273
A41: -1.1 | B41: 4.761904762
A42: -1
A43: -0.9 | B43: -5.263157895
A44: -0.8 | B44: -2.777777778
A45: -0.7 | B45: -1.960784314
A46: -0.6 | B46: -1.5625
A47: -0.5 | B47: -1.333333333
A48: -0.4 | B48: -1.19047619
A49: -0.3 | B49: -1.098901099
A50: -0.2 | B50: -1.041666667
A51: -0.1 | B51: -1.01010101
A52: 0 | B52: -1
A53: 0.1 | B53: -1.01010101
A54: 0.2 | B54: -1.041666667
A55: 0.3 | B55: -1.098901099
A56: 0.4 | B56: -1.19047619
A57: 0.5 | B57: -1.333333333
A58: 0.6 | B58: -1.5625
A59: 0.7 | B59: -1.960784314
A60: 0.8 | B60: -2.777777778
A61: 0.9 | B61: -5.263157895
A62: 1
A63: 1.1 | B63: 4.761904762
A64: 1.2 | B64: 2.272727273
A65: 1.3 | B65: 1.449275362
A66: 1.4 | B66: 1.041666667
A67: 1.5 | B67: 0.8
A68: 1.6 | B68: =1/(POWER(A68,2)-1) -> 0.641025641
A69: 1.7 | B69: 0.5291005291
A70: 1.8 | B70: 0.4464285714
A71: 1.9 | B71: 0.3831417625
A72: 2 | B72: 0.3333333333
A73: 2.1 | B73: 0.293255132
A74: 2.2 | B74: 0.2604166667
A75: 2.3 | B75: 0.2331002331
A76: 2.4 | B76: 0.2100840336
A77: 2.5 | B77: 0.1904761905
A78: 2.6 | B78: 0.1736111111
A79: 2.7 | B79: 0.1589825119
A80: 2.8 | B80: 0.1461988304
A81: 2.9 | B81: 0.1349527665
A82: 3 | B82: 0.125
A83: 3.1 | B83: 0.1161440186
A84: 3.2 | B84: 0.1082251082
A85: 3.3 | B85: 0.1011122346
A86: 3.4 | B86: 0.0946969697
A87: 3.5 | B87: 0.08888888889
A88: 3.6 | B88: 0.08361204013
A89: 3.7 | B89: 0.07880220646
A90: 3.8 | B90: 0.0744047619
A91: 3.9 | B91: 0.07037297678
A92: 4 | B92: 0.06666666667
A93: 4.1 | B93: 0.06325110689
A94: 4.2 | B94: 0.06009615385
A95: 4.3 | B95: 0.05717552887
A96: 4.4 | B96: 0.05446623094
A97: 4.5 | B97: 0.05194805195
A98: 4.6 | B98: 0.0496031746
A99: 4.7 | B99: 0.04741583689
A100: 4.8 | B100: 0.04537205082
A101: 4.9 | B101: 0.04345936549
A102: 5 | B102: 0.04166666667

Sheet 4. Matematyczne II
A1: x | B1: y = sin(x) | C1: y = sin(3x) | D1: y = 3sin(x)
A2: -720 | B2: =SIN(A2*PI()/180) -> 4.90059382e-16 | C2: =SIN(3*A2*PI()/180) -> 1.470178146e-15 | D2: =3*SIN(A2*PI()/180) -> 1.470178146e-15
A3: -715 | B3: =SIN(A3*PI()/180) -> 0.08715574275 | C3: =SIN(3*A3*PI()/180) -> 0.2588190451 | D3: =3*SIN(A3*PI()/180) -> 0.2614672282
A4: -710 | B4: =SIN(A4*PI()/180) -> 0.1736481777 | C4: =SIN(3*A4*PI()/180) -> 0.5 | D4: =3*SIN(A4*PI()/180) -> 0.520944533
A5: -705 | B5: 0.2588190451 | C5: 0.7071067812 | D5: 0.7764571353
A6: -700 | B6: 0.3420201433 | C6: 0.8660254038 | D6: 1.02606043
A7: -695 | B7: 0.4226182617 | C7: 0.9659258263 | D7: 1.267854785
A8: -690 | B8: 0.5 | C8: 1 | D8: 1.5
A9: -685 | B9: 0.5735764364 | C9: 0.9659258263 | D9: 1.720729309
A10: -680 | B10: 0.6427876097 | C10: 0.8660254038 | D10: 1.928362829
A11: -675 | B11: 0.7071067812 | C11: 0.7071067812 | D11: 2.121320344
A12: -670 | B12: 0.7660444431 | C12: 0.5 | D12: 2.298133329
A13: -665 | B13: 0.8191520443 | C13: 0.2588190451 | D13: 2.457456133
A14: -660 | B14: 0.8660254038 | C14: 2.205050378e-15 | D14: 2.598076211
A15: -655 | B15: 0.906307787 | C15: -0.2588190451 | D15: 2.718923361
A16: -650 | B16: 0.9396926208 | C16: -0.5 | D16: 2.819077862
A17: -645 | B17: 0.9659258263 | C17: -0.7071067812 | D17: 2.897777479
A18: -640 | B18: 0.984807753 | C18: -0.8660254038 | D18: 2.954423259
A19: -635 | B19: 0.9961946981 | C19: -0.9659258263 | D19: 2.988584094
A20: -630 | B20: 1 | C20: -1 | D20: 3
A21: -625 | B21: 0.9961946981 | C21: -0.9659258263 | D21: 2.988584094
A22: -620 | B22: 0.984807753 | C22: -0.8660254038 | D22: 2.954423259
A23: -615 | B23: 0.9659258263 | C23: -0.7071067812 | D23: 2.897777479
A24: -610 | B24: 0.9396926208 | C24: -0.5 | D24: 2.819077862
A25: -605 | B25: 0.906307787 | C25: -0.2588190451 | D25: 2.718923361
A26: -600 | B26: 0.8660254038 | C26: 1.225148455e-15 | D26: 2.598076211
A27: -595 | B27: 0.8191520443 | C27: 0.2588190451 | D27: 2.457456133
A28: -590 | B28: 0.7660444431 | C28: 0.5 | D28: 2.298133329
A29: -585 | B29: 0.7071067812 | C29: 0.7071067812 | D29: 2.121320344
A30: -580 | B30: 0.6427876097 | C30: 0.8660254038 | D30: 1.928362829
A31: -575 | B31: 0.5735764364 | C31: 0.9659258263 | D31: 1.720729309
A32: -570 | B32: 0.5 | C32: 1 | D32: 1.5
A33: -565 | B33: 0.4226182617 | C33: 0.9659258263 | D33: 1.267854785
A34: -560 | B34: 0.3420201433 | C34: 0.8660254038 | D34: 1.02606043
A35: -555 | B35: 0.2588190451 | C35: 0.7071067812 | D35: 0.7764571353
A36: -550 | B36: 0.1736481777 | C36: 0.5 | D36: 0.520944533
A37: -545 | B37: 0.08715574275 | C37: 0.2588190451 | D37: 0.2614672282
A38: -540 | B38: -3.675445365e-16 | C38: -4.655347288e-15 | D38: -1.102633609e-15
A39: -535 | B39: -0.08715574275 | C39: -0.2588190451 | D39: -0.2614672282
A40: -530 | B40: -0.1736481777 | C40: -0.5 | D40: -0.520944533
A41: -525 | B41: -0.2588190451 | C41: -0.7071067812 | D41: -0.7764571353
A42: -520 | B42: -0.3420201433 | C42: -0.8660254038 | D42: -1.02606043
A43: -515 | B43: -0.4226182617 | C43: -0.9659258263 | D43: -1.267854785
A44: -510 | B44: -0.5 | C44: -1 | D44: -1.5
A45: -505 | B45: -0.5735764364 | C45: -0.9659258263 | D45: -1.720729309
A46: -500 | B46: -0.6427876097 | C46: -0.8660254038 | D46: -1.928362829
A47: -495 | B47: -0.7071067812 | C47: -0.7071067812 | D47: -2.121320344
A48: -490 | B48: -0.7660444431 | C48: -0.5 | D48: -2.298133329
A49: -485 | B49: -0.8191520443 | C49: -0.2588190451 | D49: -2.457456133
A50: -480 | B50: -0.8660254038 | C50: 9.801187639e-16 | D50: -2.598076211
A51: -475 | B51: -0.906307787 | C51: 0.2588190451 | D51: -2.718923361
A52: -470 | B52: -0.9396926208 | C52: 0.5 | D52: -2.819077862
A53: -465 | B53: -0.9659258263 | C53: 0.7071067812 | D53: -2.897777479
A54: -460 | B54: -0.984807753 | C54: 0.8660254038 | D54: -2.954423259
A55: -455 | B55: -0.9961946981 | C55: 0.9659258263 | D55: -2.988584094
A56: -450 | B56: -1 | C56: 1 | D56: -3
A57: -445 | B57: -0.9961946981 | C57: 0.9659258263 | D57: -2.988584094
A58: -440 | B58: -0.984807753 | C58: 0.8660254038 | D58: -2.954423259
A59: -435 | B59: -0.9659258263 | C59: 0.7071067812 | D59: -2.897777479
A60: -430 | B60: -0.9396926208 | C60: 0.5 | D60: -2.819077862
A61: -425 | B61: -0.906307787 | C61: 0.2588190451 | D61: -2.718923361
A62: -420 | B62: -0.8660254038 | C62: -8.576039184e-16 | D62: -2.598076211
A63: -415 | B63: -0.8191520443 | C63: -0.2588190451 | D63: -2.457456133
A64: -410 | B64: -0.7660444431 | C64: -0.5 | D64: -2.298133329
A65: -405 | B65: -0.7071067812 | C65: -0.7071067812 | D65: -2.121320344
A66: -400 | B66: -0.6427876097 | C66: -0.8660254038 | D66: -1.928362829
A67: -395 | B67: -0.5735764364 | C67: -0.9659258263 | D67: -1.720729309
A68: -390 | B68: =SIN(A68*PI()/180) -> -0.5 | C68: =SIN(3*A68*PI()/180) -> -1 | D68: =3*SIN(A68*PI()/180) -> -1.5
A69: -385 | B69: -0.4226182617 | C69: -0.9659258263 | D69: -1.267854785
A70: -380 | B70: -0.3420201433 | C70: -0.8660254038 | D70: -1.02606043
A71: -375 | B71: -0.2588190451 | C71: -0.7071067812 | D71: -0.7764571353
A72: -370 | B72: -0.1736481777 | C72: -0.5 | D72: -0.520944533
A73: -365 | B73: -0.08715574275 | C73: -0.2588190451 | D73: -0.2614672282
A74: -360 | B74: 2.45029691e-16 | C74: 7.350890729e-16 | D74: 7.350890729e-16
A75: -355 | B75: 0.08715574275 | C75: 0.2588190451 | D75: 0.2614672282
A76: -350 | B76: 0.1736481777 | C76: 0.5 | D76: 0.520944533
A77: -345 | B77: 0.2588190451 | C77: 0.7071067812 | D77: 0.7764571353
A78: -340 | B78: 0.3420201433 | C78: 0.8660254038 | D78: 1.02606043
A79: -335 | B79: 0.4226182617 | C79: 0.9659258263 | D79: 1.267854785
A80: -330 | B80: 0.5 | C80: 1 | D80: 1.5
A81: -325 | B81: 0.5735764364 | C81: 0.9659258263 | D81: 1.720729309
A82: -320 | B82: 0.6427876097 | C82: 0.8660254038 | D82: 1.928362829
A83: -315 | B83: 0.7071067812 | C83: 0.7071067812 | D83: 2.121320344
A84: -310 | B84: 0.7660444431 | C84: 0.5 | D84: 2.298133329
A85: -305 | B85: 0.8191520443 | C85: 0.2588190451 | D85: 2.457456133
A86: -300 | B86: 0.8660254038 | C86: -6.125742275e-16 | D86: 2.598076211
A87: -295 | B87: 0.906307787 | C87: -0.2588190451 | D87: 2.718923361
A88: -290 | B88: 0.9396926208 | C88: -0.5 | D88: 2.819077862
A89: -285 | B89: 0.9659258263 | C89: -0.7071067812 | D89: 2.897777479
A90: -280 | B90: 0.984807753 | C90: -0.8660254038 | D90: 2.954423259
A91: -275 | B91: 0.9961946981 | C91: -0.9659258263 | D91: 2.988584094
A92: -270 | B92: 1 | C92: -1 | D92: 3
A93: -265 | B93: 0.9961946981 | C93: -0.9659258263 | D93: 2.988584094
A94: -260 | B94: 0.984807753 | C94: -0.8660254038 | D94: 2.954423259
A95: -255 | B95: 0.9659258263 | C95: -0.7071067812 | D95: 2.897777479
A96: -250 | B96: 0.9396926208 | C96: -0.5 | D96: 2.819077862
A97: -245 | B97: 0.906307787 | C97: -0.2588190451 | D97: 2.718923361
A98: -240 | B98: 0.8660254038 | C98: 4.90059382e-16 | D98: 2.598076211
A99: -235 | B99: 0.8191520443 | C99: 0.2588190451 | D99: 2.457456133
A100: -230 | B100: 0.7660444431 | C100: 0.5 | D100: 2.298133329
A101: -225 | B101: 0.7071067812 | C101: 0.7071067812 | D101: 2.121320344
A102: -220 | B102: 0.6427876097 | C102: 0.8660254038 | D102: 1.928362829
A103: -215 | B103: 0.5735764364 | C103: 0.9659258263 | D103: 1.720729309
A104: -210 | B104: 0.5 | C104: 1 | D104: 1.5
A105: -205 | B105: 0.4226182617 | C105: 0.9659258263 | D105: 1.267854785
A106: -200 | B106: 0.3420201433 | C106: 0.8660254038 | D106: 1.02606043
A107: -195 | B107: 0.2588190451 | C107: 0.7071067812 | D107: 0.7764571353
A108: -190 | B108: 0.1736481777 | C108: 0.5 | D108: 0.520944533
A109: -185 | B109: 0.08715574275 | C109: 0.2588190451 | D109: 0.2614672282
A110: -180 | B110: -1.225148455e-16 | C110: -3.675445365e-16 | D110: -3.675445365e-16
A111: -175 | B111: -0.08715574275 | C111: -0.2588190451 | D111: -0.2614672282
A112: -170 | B112: -0.1736481777 | C112: -0.5 | D112: -0.520944533
A113: -165 | B113: -0.2588190451 | C113: -0.7071067812 | D113: -0.7764571353
A114: -160 | B114: -0.3420201433 | C114: -0.8660254038 | D114: -1.02606043
A115: -155 | B115: -0.4226182617 | C115: -0.9659258263 | D115: -1.267854785
A116: -150 | B116: -0.5 | C116: -1 | D116: -1.5
A117: -145 | B117: -0.5735764364 | C117: -0.9659258263 | D117: -1.720729309
A118: -140 | B118: -0.6427876097 | C118: -0.8660254038 | D118: -1.928362829
A119: -135 | B119: -0.7071067812 | C119: -0.7071067812 | D119: -2.121320344
A120: -130 | B120: -0.7660444431 | C120: -0.5 | D120: -2.298133329
A121: -125 | B121: -0.8191520443 | C121: -0.2588190451 | D121: -2.457456133
A122: -120 | B122: -0.8660254038 | C122: 2.45029691e-16 | D122: -2.598076211
A123: -115 | B123: -0.906307787 | C123: 0.2588190451 | D123: -2.718923361
A124: -110 | B124: -0.9396926208 | C124: 0.5 | D124: -2.819077862
A125: -105 | B125: -0.9659258263 | C125: 0.7071067812 | D125: -2.897777479
A126: -100 | B126: -0.984807753 | C126: 0.8660254038 | D126: -2.954423259
A127: -95 | B127: -0.9961946981 | C127: 0.9659258263 | D127: -2.988584094
A128: -90 | B128: -1 | C128: 1 | D128: -3
A129: -85 | B129: -0.9961946981 | C129: 0.9659258263 | D129: -2.988584094
A130: -80 | B130: -0.984807753 | C130: 0.8660254038 | D130: -2.954423259
A131: -75 | B131: -0.9659258263 | C131: 0.7071067812 | D131: -2.897777479
A132: -70 | B132: =SIN(A132*PI()/180) -> -0.9396926208 | C132: =SIN(3*A132*PI()/180) -> 0.5 | D132: =3*SIN(A132*PI()/180) -> -2.819077862
A133: -65 | B133: -0.906307787 | C133: 0.2588190451 | D133: -2.718923361
A134: -60 | B134: -0.8660254038 | C134: -1.225148455e-16 | D134: -2.598076211
A135: -55 | B135: -0.8191520443 | C135: -0.2588190451 | D135: -2.457456133
A136: -50 | B136: -0.7660444431 | C136: -0.5 | D136: -2.298133329
A137: -45 | B137: -0.7071067812 | C137: -0.7071067812 | D137: -2.121320344
A138: -40 | B138: -0.6427876097 | C138: -0.8660254038 | D138: -1.928362829
A139: -35 | B139: -0.5735764364 | C139: -0.9659258263 | D139: -1.720729309
A140: -30 | B140: -0.5 | C140: -1 | D140: -1.5
A141: -25 | B141: -0.4226182617 | C141: -0.9659258263 | D141: -1.267854785
A142: -20 | B142: -0.3420201433 | C142: -0.8660254038 | D142: -1.02606043
A143: -15 | B143: -0.2588190451 | C143: -0.7071067812 | D143: -0.7764571353
A144: -10 | B144: -0.1736481777 | C144: -0.5 | D144: -0.520944533
A145: -5 | B145: -0.08715574275 | C145: -0.2588190451 | D145: -0.2614672282
A146: 0 | B146: 0 | C146: 0 | D146: 0
A147: 5 | B147: 0.08715574275 | C147: 0.2588190451 | D147: 0.2614672282
A148: 10 | B148: 0.1736481777 | C148: 0.5 | D148: 0.520944533
A149: 15 | B149: 0.2588190451 | C149: 0.7071067812 | D149: 0.7764571353
A150: 20 | B150: 0.3420201433 | C150: 0.8660254038 | D150: 1.02606043
A151: 25 | B151: 0.4226182617 | C151: 0.9659258263 | D151: 1.267854785
A152: 30 | B152: 0.5 | C152: 1 | D152: 1.5
A153: 35 | B153: 0.5735764364 | C153: 0.9659258263 | D153: 1.720729309
A154: 40 | B154: 0.6427876097 | C154: 0.8660254038 | D154: 1.928362829
A155: 45 | B155: 0.7071067812 | C155: 0.7071067812 | D155: 2.121320344
A156: 50 | B156: 0.7660444431 | C156: 0.5 | D156: 2.298133329
A157: 55 | B157: 0.8191520443 | C157: 0.2588190451 | D157: 2.457456133
A158: 60 | B158: 0.8660254038 | C158: 1.225148455e-16 | D158: 2.598076211
A159: 65 | B159: 0.906307787 | C159: -0.2588190451 | D159: 2.718923361
A160: 70 | B160: 0.9396926208 | C160: -0.5 | D160: 2.819077862
A161: 75 | B161: 0.9659258263 | C161: -0.7071067812 | D161: 2.897777479
A162: 80 | B162: 0.984807753 | C162: -0.8660254038 | D162: 2.954423259
A163: 85 | B163: 0.9961946981 | C163: -0.9659258263 | D163: 2.988584094
A164: 90 | B164: 1 | C164: -1 | D164: 3
A165: 95 | B165: 0.9961946981 | C165: -0.9659258263 | D165: 2.988584094
A166: 100 | B166: 0.984807753 | C166: -0.8660254038 | D166: 2.954423259
A167: 105 | B167: 0.9659258263 | C167: -0.7071067812 | D167: 2.897777479
A168: 110 | B168: 0.9396926208 | C168: -0.5 | D168: 2.819077862
A169: 115 | B169: 0.906307787 | C169: -0.2588190451 | D169: 2.718923361
A170: 120 | B170: 0.8660254038 | C170: -2.45029691e-16 | D170: 2.598076211
A171: 125 | B171: 0.8191520443 | C171: 0.2588190451 | D171: 2.457456133
A172: 130 | B172: 0.7660444431 | C172: 0.5 | D172: 2.298133329
A173: 135 | B173: 0.7071067812 | C173: 0.7071067812 | D173: 2.121320344
A174: 140 | B174: 0.6427876097 | C174: 0.8660254038 | D174: 1.928362829
A175: 145 | B175: 0.5735764364 | C175: 0.9659258263 | D175: 1.720729309
A176: 150 | B176: 0.5 | C176: 1 | D176: 1.5
A177: 155 | B177: 0.4226182617 | C177: 0.9659258263 | D177: 1.267854785
A178: 160 | B178: 0.3420201433 | C178: 0.8660254038 | D178: 1.02606043
A179: 165 | B179: 0.2588190451 | C179: 0.7071067812 | D179: 0.7764571353
A180: 170 | B180: 0.1736481777 | C180: 0.5 | D180: 0.520944533
A181: 175 | B181: 0.08715574275 | C181: 0.2588190451 | D181: 0.2614672282
A182: 180 | B182: 1.225148455e-16 | C182: 3.675445365e-16 | D182: 3.675445365e-16
A183: 185 | B183: -0.08715574275 | C183: -0.2588190451 | D183: -0.2614672282
A184: 190 | B184: -0.1736481777 | C184: -0.5 | D184: -0.520944533
A185: 195 | B185: -0.2588190451 | C185: -0.7071067812 | D185: -0.7764571353
A186: 200 | B186: -0.3420201433 | C186: -0.8660254038 | D186: -1.02606043
A187: 205 | B187: -0.4226182617 | C187: -0.9659258263 | D187: -1.267854785
A188: 210 | B188: -0.5 | C188: -1 | D188: -1.5
A189: 215 | B189: -0.5735764364 | C189: -0.9659258263 | D189: -1.720729309
A190: 220 | B190: -0.6427876097 | C190: -0.8660254038 | D190: -1.928362829
A191: 225 | B191: -0.7071067812 | C191: -0.7071067812 | D191: -2.121320344
A192: 230 | B192: -0.7660444431 | C192: -0.5 | D192: -2.298133329
A193: 235 | B193: -0.8191520443 | C193: -0.2588190451 | D193: -2.457456133
A194: 240 | B194: -0.8660254038 | C194: -4.90059382e-16 | D194: -2.598076211
A195: 245 | B195: -0.906307787 | C195: 0.2588190451 | D195: -2.718923361
A196: 250 | B196: =SIN(A196*PI()/180) -> -0.9396926208 | C196: =SIN(3*A196*PI()/180) -> 0.5 | D196: =3*SIN(A196*PI()/180) -> -2.819077862
A197: 255 | B197: -0.9659258263 | C197: 0.7071067812 | D197: -2.897777479
A198: 260 | B198: -0.984807753 | C198: 0.8660254038 | D198: -2.954423259
A199: 265 | B199: -0.9961946981 | C199: 0.9659258263 | D199: -2.988584094
A200: 270 | B200: -1 | C200: 1 | D200: -3
... 90 more rows

Sheet 5. Pomiary
A1: a | B1: b
A2: 0 | B2: 1.924075961
A3: 0.1 | B3: 1.95221926
A4: 0.2 | B4: 2.283478008
A5: 0.3 | B5: 2.630404832
A6: 0.4 | B6: 3.447876096
A7: 0.5 | B7: 3.702576668
A8: 0.6 | B8: 4.073351032
A9: 0.7 | B9: 3.756458881
A10: 0.8 | B10: 4.305768356
A11: 0.9 | B11: 3.505709083
A12: 1 | B12: 3.747971284
A13: 1.1 | B13: 4.200067209
A14: 1.2 | B14: 4.219698235
A15: 1.3 | B15: 3.99089438
A16: 1.4 | B16: 3.869444728
A17: 1.5 | B17: 3.908545383
A18: 1.6 | B18: 3.146490516
A19: 1.7 | B19: 2.978211894
A20: 1.8 | B20: 2.957954395
A21: 1.9 | B21: 2.291560952
A22: 2 | B22: 1.719677458
A23: 2.1 | B23: 1.343141232
A24: 2.2 | B24: 0.7235107806
A25: 2.3 | B25: 0.8482591126
A26: 2.4 | B26: -0.05241489246
A27: 2.5 | B27: -0.7099624285
A28: 2.6 | B28: -0.9448831694
A29: 2.7 | B29: -1.969734862
A30: 2.8 | B30: -2.272046392
A31: 2.9 | B31: -3.535018846
A32: 3 | B32: -4.03215208

Sheet 6. Nazwiska
D4: Nazwisko | E4: Częstość
D5: Janik | E5: 24773
D6: Musiał | E6: 23130
D7: Wawrzyniak | E7: 21569
D8: Nowak | E8: 205536
D9: Wiśniewski | E9: 52422
D10: Erat | E10: 35
D11: Erad | E11: 7
D12: Kołodziejczyk | E12: 23115

Sheet 7. Klasyfikacja
A1: Klasa | B1: Średnia ocen | C1: Frekwencja
A2: 1A | B2: =ROUND(RAND()*5+1,2) -> 3.24 | C2: =RAND()*0.5+0.5 -> 85%
A3: 1B | B3: =ROUND(RAND()*5+1,2) -> 5.25 | C3: =RAND()*0.5+0.5 -> 70%
A4: 1C | B4: 4.92 | C4: 54%
A5: 1D | B5: 1.48 | C5: 57%
A6: 1E | B6: 1.49 | C6: 91%
A7: 2A | B7: 2.12 | C7: 52%
A8: 2B | B8: 3.29 | C8: 54%
A9: 2C | B9: 5.65 | C9: 51%
A10: 2D | B10: 4.3 | C10: 64%
A11: 2E | B11: 4.92 | C11: 66%
